fUSD/lending_fUSD_20250809
["ID","MTS","AMOUNT","RATE_DAILY","PERIOD"]
[378140582,1754745046412,-151.0,0.00022414,2]
[378140583,1754745046422,-283.98841,0.00022414,2]
[378140584,1754745046431,-173.0,0.00022414,2]
[378140585,1754745046440,-173.95,0.00022451,2]
[378140586,1754745046450,-171.34,0.00022494,2]
[378140587,1754745046459,-171.34,0.0002255,2]
[378140588,1754745046468,-6075.0,0.00022551,2]
[378140589,1754745046478,-4141.0,0.00022551,2]
[378140590,1754745046488,-1227.262,0.00022551,2]
[378140591,1754745046497,-4968.39924851,0.0002258,2]
[378140592,1754745046506,-249.15373779,0.00022605,2]
[378140593,1754745046516,-171.34,0.00022606,2]
[378140594,1754745046525,-171.34,0.00022662,2]
[378140595,1754745046536,-171.34,0.00022719,2]
[378140596,1754745046547,-1776.0,0.0002274,3]
[378140597,1754745046558,-295.0,0.0002287,2]
[378140598,1754745046568,-377.61691248,0.00022923,2]
[378140599,1754745046577,-4968.39924845,0.00022998,2]
[378140600,1754745046587,-159.632,0.00023024,2]
[378140601,1754745046597,-513.0,0.00023156,9]
[378140602,1754745046606,-1776.0,0.0002324,3]
[378140603,1754745046615,-150.0,0.00023399,4]
[378140604,1754745046625,-4968.39924845,0.00023416,2]
[378140605,1754745046635,-179.0,0.0002372,120]
[378140606,1754745046644,-1776.0,0.0002374,3]
[378140607,1754745046654,-160.0,0.00023814,2]
[378140608,1754745046663,-210.96268956,0.00023814,2]
[378140609,1754745046673,-416.03518578,0.00023814,2]
[378140610,1754745046683,-4496.15507419,0.00023814,2]
[378140611,1754745046692,-500.0,0.00023814,2]
[378140612,1754745046701,-584.67693245,0.00023814,2]
[378140613,1754745046711,-239.84119403,0.00023814,2]
[378140615,1754745046721,-500.0,0.00023814,2]
[378140617,1754745046730,-233.83638686,0.00023814,2]
[378140619,1754745046740,-250.0,0.00023814,2]
[378140621,1754745046749,-350.0,0.00023814,2]
[378140648,1754745046996,-303.58,0.00023821,2]
[378140651,1754745047026,-4968.39924845,0.00023834,2]
[378140653,1754745047036,-500.0,0.00023835,2]
[378140656,1754745047047,-500.0,0.00023835,2]
[378140657,1754745047056,-173.0,0.00023909,2]
[378140659,1754745047065,-154.95733511,0.00023924,2]
[378140661,1754745047075,-361.56711525,0.00023924,2]
[378140664,1754745047085,-265.64,0.00023953,2]
[378140665,1754745047096,-157.19212379,0.00024,5]
[378140667,1754745047105,-289.0,0.0002405,2]
[378140670,1754745047115,-284.46293571,0.00024183,2]
[378140672,1754745047124,-1776.0,0.0002424,3]
[378140674,1754745047134,-4968.39924845,0.00024252,2]
[378140676,1754745047143,-1000.0,0.00024336,2]
[378140677,1754745047153,-3090.53133835,0.00024336,2]
[378142564,1754745130286,153.97,0.00013699,2]
[378142588,1754745157505,219.3,0.00017164,2]
[378142622,1754746060432,-231.0,0.00023033,120]
[378142623,1754746060461,-202.0,0.00023033,120]
[378142624,1754746060487,-152.0,0.00023033,120]
[378142625,1754746060514,-152.0,0.00023033,120]
[378142626,1754746060543,-152.0,0.00023033,120]
[378142627,1754746060569,-152.0,0.00023033,120]
[378142628,1754746060595,-152.0,0.00023033,120]
[378142629,1754746060622,-152.0,0.00023033,120]
[378142639,1754746206988,167.0,0.00023039,120]
[378142640,1754746209775,-400.0,0.00024657,120]
[378142641,1754746209866,-400.0,0.00024931,120]
[378142642,1754746209923,-200.0,0.00025,120]
[378142647,1754746232210,-219.3,0.00018894,2]
[378142648,1754746232220,-1200.0,0.00018989,2]
[378142649,1754746232229,-808.62524837,0.00018989,2]
[378142650,1754746232267,-41.37475163,0.00018989,2]
[378142651,1754746232277,-1685.78924944,0.0001899,2]
[378142652,1754746232327,-369.09095539,0.0001899,2]
[378142653,1754746232338,-2519.87973795,0.0001899,2]
[378142654,1754746232387,-399.60573942,0.0001899,2]
[378142655,1754746232447,-332.59358378,0.0001899,2]
[378142656,1754746232459,-936.79460021,0.0001899,2]
[378142657,1754746232507,-300.87900237,0.0001899,2]
[378142663,1754746237464,-9986.57280257,0.0001899,2]
[378142666,1754746237476,-34446.64433469,0.0001899,2]
[378142712,1754746238085,-2297.9204272,0.0001899,2]
[378142719,1754746238143,-933.49806202,0.0001899,2]
[378142721,1754746238155,-957.43438092,0.0001899,2]
[378142723,1754746238166,-691.20796414,0.0001899,2]
[378142733,1754746238256,-1261.42173076,0.0001899,2]
[378142736,1754746238267,-1188.86416286,0.0001899,2]
[378142738,1754746238278,-1691.80326628,0.0001899,2]
[378142740,1754746238287,-250.0,0.00019036,2]
[378142742,1754746238296,-500.0,0.00019036,2]
[378142744,1754746238308,-151.0,0.00019178,2]
[378142746,1754746238317,-26.95406072,0.00019454,2]
[378142758,1754746238423,-136.69593928,0.00019454,2]
[378142760,1754746238433,-184.57444339,0.00019473,2]
[378142766,1754746238483,-65.42555661,0.00019473,2]
[378142768,1754746238492,-156.587,0.00019726,2]
[378142770,1754746238501,-206.26606727,0.00020113,2]
[378142772,1754746238511,-304.64,0.00020386,2]
[378142774,1754746238520,-4.37488057,0.000204,2]
[378142776,1754746238532,-286.75181943,0.000204,2]
[378142778,1754746238541,-302.88,0.00020411,2]
[378142780,1754746238551,-305.66,0.00020411,2]
[378142782,1754746238560,-303.84,0.000205,2]
[378142784,1754746238570,-300.18,0.00020509,2]
[378142786,1754746238579,-301.56,0.00020554,2]
[378142788,1754746238589,-304.9,0.00020554,2]
[378142790,1754746238598,-219.3,0.00020625,2]
[378142792,1754746238608,-250.0,0.00020784,2]
[378142794,1754746238617,-500.0,0.00020784,2]
[378142796,1754746238626,-200.0,0.00020811,2]
[378142798,1754746238636,-329.74537788,0.00020811,2]
[378142800,1754746238645,-301.24,0.00020825,2]
[378142802,1754746238653,-217.42,0.000216,2]
[378142803,1754746238663,-383.95,0.00021711,2]
[378142805,1754746238672,-250.0,0.00022079,2]
[378142807,1754746238681,-168.86,0.00022179,2]
[378142808,1754746238690,-166.08,0.00022251,2]
[378142809,1754746238699,-170.0,0.00022345,7]
[378142810,1754746238709,-219.3,0.00022355,2]
[378142811,1754746238718,-1000.0,0.00022404,2]
[378142812,1754746238728,-168.74,0.00022409,2]
[378142813,1754746238738,-377.52,0.00022431,2]
[378142815,1754746238747,-370.73,0.0002251,7]
[378142816,1754746238756,-166.0,0.00022597,2]
[378142818,1754746238766,-301.27,0.00022767,2]
[378142820,1754746238776,-513.0,0.00022787,2]
[378142821,1754746238786,-161.42,0.00022851,2]
[378142822,1754746238795,-166.51,0.00022983,2]
[378142823,1754746238805,-166.0,0.00022983,2]
[378142824,1754746238814,-200.0,0.000231,7]
[378142825,1754746238823,-294.0,0.000231,2]
[378142826,1754746238833,-166.0,0.0002337,2]
[378142827,1754746238843,-500.0,0.0002351,30]
[378142828,1754746238852,-500.0,0.0002351,30]
[378142829,1754746238861,-500.0,0.0002351,30]
[378142830,1754746238871,-500.0,0.0002351,30]
[378142831,1754746238880,-500.0,0.0002351,30]
[378142832,1754746238890,-500.0,0.0002351,30]
[378142833,1754746238899,-500.0,0.0002351,30]
[378142834,1754746238909,-522.35917051,0.0002351,30]
[378142835,1754746238918,-200.0,0.0002355,2]
[378142836,1754746238928,-150.0,0.00023616,2]
[378142837,1754746238937,-166.0,0.00023756,2]
[378142838,1754746238946,-150.0,0.00023756,2]
[378142839,1754746238955,-150.0,0.00023756,2]
[378142840,1754746238964,-150.0,0.00023756,2]
[378142841,1754746238974,-200.0,0.00023756,2]
[378142842,1754746238983,-150.0,0.00023756,2]
[378142843,1754746238992,-150.0,0.00023756,2]
[378142844,1754746239002,-185.0,0.00023756,2]
[378142845,1754746239011,-150.0,0.00023776,2]
[378142846,1754746239020,-276.71014216,0.00023814,2]
[378142847,1754746239030,-416.03518578,0.00023814,2]
[378142848,1754746239039,-500.0,0.00023814,2]
[378142849,1754746239049,-500.0,0.00023814,2]
[378142850,1754746239059,-151.0,0.00023814,2]
[378142851,1754746239068,-151.0,0.00023814,2]
[378142852,1754746239077,-500.0,0.00023814,2]
[378142853,1754746239086,-151.0,0.00023814,2]
[378142854,1754746239095,-500.0,0.00023814,2]
[378142855,1754746239104,-151.0,0.00023814,2]
[378142856,1754746239114,-500.0,0.00023814,2]
[378142857,1754746239128,-500.0,0.00023814,2]
[378142858,1754746239137,-151.0,0.00023814,2]
[378142859,1754746239372,-500.0,0.00023814,2]
[378142860,1754746239387,-500.0,0.00023814,2]
[378142861,1754746239397,-151.0,0.00023814,2]
[378142862,1754746239407,-500.0,0.00023814,2]
[378142863,1754746239416,-500.0,0.00023814,2]
[378142864,1754746239426,-151.0,0.00023814,2]
[378142865,1754746239435,-500.0,0.00023814,2]
[378142866,1754746239445,-151.0,0.00023814,2]
[378142867,1754746239454,-6.30244423,0.00023814,2]
[378142868,1754746240202,-888.0,0.00019954,3]
[378142869,1754746240212,-150.0,0.00023756,2]
[378142870,1754746240222,-150.0,0.00023756,2]
[378142871,1754746240231,-1071.89829262,0.00023814,2]
[378142872,1754746240243,-3584.31207509,0.00023814,2]
[378142873,1754746240253,-167.64016421,0.00023814,2]
[378142874,1754746240277,-332.35983579,0.00023814,2]
[378142875,1754746240287,-499.97321343,0.00023814,2]
[378142876,1754746240297,-151.0,0.00023814,2]
[378142877,1754746240309,-500.0,0.00023814,2]
[378142878,1754746240320,-151.0,0.00023814,2]
[378142879,1754746240329,-239.84119403,0.00023814,2]
[378142880,1754746240339,-500.0,0.00023814,2]
[378142881,1754746240348,-500.0,0.00023814,2]
[378142882,1754746240358,-151.0,0.00023814,2]
[378142883,1754746240368,-151.0,0.00023814,2]
[378142884,1754746240377,-398.93538913,0.00023814,2]
[378142885,1754746240394,-101.06461087,0.00023814,2]
[378142886,1754746240403,-311.32297605,0.00023814,2]
[378142887,1754746240415,-188.67702395,0.00023814,2]
[378142888,1754746240425,-151.0,0.00023814,2]
[378142889,1754746240435,-300.0,0.00023814,2]
[378142890,1754746240445,-500.0,0.00023814,2]
[378142891,1754746240455,-500.0,0.00023814,2]
[378142892,1754746240465,-300.0,0.00023814,2]
[378142893,1754746240476,-287.04902216,0.00023814,2]
[378142894,1754746240487,-212.95097784,0.00023814,2]
[378142895,1754746240497,-151.0,0.00023814,2]
[378142896,1754746240506,-500.0,0.00023814,2]
[378142897,1754746240516,-500.0,0.00023814,2]
[378142898,1754746240525,-300.0,0.00023814,2]
[378142899,1754746240535,-151.0,0.00023814,2]
[378142900,1754746240544,-500.0,0.00023814,2]
[378142901,1754746240554,-500.0,0.00023814,2]
[378142902,1754746240563,-500.0,0.00023814,2]
[378142903,1754746240572,-500.0,0.00023814,2]
[378142904,1754746240582,-300.0,0.00023814,2]
[378142905,1754746240592,-62.55735706,0.00023814,2]
[378142906,1754746240604,-437.44264294,0.00023814,2]
[378142908,1754746240615,-460.0,0.00023814,2]
[378142909,1754746240625,-300.0,0.00023814,2]
[378142910,1754746240634,-500.0,0.00023814,2]
[378142911,1754746240643,-300.0,0.00023814,2]
[378142912,1754746240653,-156.03795503,0.00023814,2]
[378142913,1754746240663,-300.0,0.00023814,2]
[378142914,1754746240672,-300.0,0.00023814,2]
[378142915,1754746240682,-300.0,0.00023814,2]
[378142916,1754746240692,-300.0,0.00023814,2]
[378142917,1754746240702,-300.0,0.00023814,2]
[378142918,1754746240713,-300.0,0.00023814,2]
[378142919,1754746240722,-300.0,0.00023814,2]
[378142920,1754746240732,-300.0,0.00023814,2]
[378142921,1754746240742,-300.0,0.00023814,2]
[378142922,1754746240752,-250.0,0.00023814,2]
[378142923,1754746240761,-250.0,0.00023814,2]
[378142924,1754746240771,-300.0,0.00023814,2]
[378142925,1754746240780,-250.0,0.00023814,2]
[378142926,1754746240790,-300.0,0.00023814,2]
[378142927,1754746240799,-250.0,0.00023814,2]
[378142928,1754746240811,-300.0,0.00023814,2]
[378142929,1754746240819,-300.0,0.00023814,2]
[378142930,1754746240829,-250.0,0.00023814,2]
[378142931,1754746240838,-300.0,0.00023814,2]
[378142932,1754746240848,-250.0,0.00023814,2]
[378142933,1754746240857,-300.0,0.00023814,2]
[378142934,1754746240867,-250.0,0.00023814,2]
[378142935,1754746240876,-300.0,0.00023814,2]
[378142936,1754746240885,-250.0,0.00023814,2]
[378142937,1754746240895,-300.0,0.00023814,2]
[378142938,1754746240904,-250.0,0.00023814,2]
[378142939,1754746240914,-250.0,0.00023814,2]
[378142940,1754746240924,-300.0,0.00023814,2]
[378142941,1754746240936,-250.0,0.00023814,2]
[378142942,1754746240946,-300.0,0.00023814,2]
[378142943,1754746240955,-250.0,0.00023814,2]
[378142944,1754746240965,-300.0,0.00023814,2]
[378142945,1754746240974,-250.0,0.00023814,2]
[378142946,1754746240984,-300.0,0.00023814,2]
[378142947,1754746240994,-250.0,0.00023814,2]
[378142948,1754746241003,-300.0,0.00023814,2]
[378142949,1754746241012,-250.0,0.00023814,2]
[378142950,1754746241021,-300.0,0.00023814,2]
[378142951,1754746241031,-300.0,0.00023814,2]
[378142952,1754746241041,-150.0,0.00023814,2]
[378142953,1754746241050,-500.0,0.00023814,2]
[378142954,1754746241060,-150.0,0.00023814,2]
[378142955,1754746241069,-1181.11,0.00023824,2]
[378142956,1754746241079,-500.0,0.00023835,2]
[378142957,1754746241088,-500.0,0.00023835,2]
[378142958,1754746241098,-4835.02578598,0.00023869,2]
[378142959,1754746241107,-189.64195714,0.00023917,2]
[378142960,1754746241117,-715.81998659,0.00023924,2]
[378142961,1754746241129,-1000.0,0.00024,3]
[378142962,1754746241138,-500.0,0.00024,2]
[378142963,1754746241148,-997.258,0.00024,2]
[378142964,1754746241157,-500.0,0.00024001,30]
[378142965,1754746241168,-500.0,0.00024001,30]
[378142966,1754746241178,-500.0,0.00024001,30]
[378142967,1754746241187,-500.0,0.00024001,30]
[378142968,1754746241198,-500.0,0.00024001,30]
[378142969,1754746241207,-500.0,0.00024001,30]
[378142970,1754746241217,-500.0,0.00024001,30]
[378142971,1754746241226,-500.0,0.00024001,30]
[378142972,1754746241236,-500.0,0.00024001,30]
[378142973,1754746241246,-150.0,0.0002403,2]
[378142974,1754746241255,-150.0,0.0002403,2]
[378142975,1754746241265,-150.0,0.0002403,2]
[378142976,1754746241275,-219.3,0.00024085,2]
[378142977,1754746241284,-500.0,0.00024088,2]
[378142978,1754746241294,-150.0,0.00024088,2]
[378142979,1754746241303,-886.41132,0.0002409,2]
[378142980,1754746241312,-200.0,0.000241,7]
[378142981,1754746241322,-166.0,0.00024143,2]
[378142982,1754746241332,-150.0,0.00024206,2]
[378142983,1754746241342,-244.65,0.00024247,2]
[378142984,1754746241351,-288.0,0.0002428,2]
[378142985,1754746241361,-150.0,0.00024304,2]
[378142986,1754746241370,-150.0,0.00024304,2]
[378142987,1754746241380,-200.0,0.00024304,2]
[378142988,1754746241397,-888.0,0.00024314,3]
[378142989,1754746241407,-2451.72013785,0.00024326,2]
[378142990,1754746241416,-180.61645714,0.00024336,2]
[378142991,1754746241426,-200.0,0.00024336,2]
[378142992,1754746241436,-3729.8372599,0.00024336,2]
[378142993,1754746241445,-800.0,0.00024336,4]
[378142994,1754746241454,-151.39162457,0.00024336,2]
[378142995,1754746241464,-200.0,0.00024336,2]
[378142996,1754746241473,-12842.424,0.00024336,2]
[378142997,1754746241483,-1000.0,0.00024336,2]
[378142998,1754746241492,-150.4078,0.00024336,2]
[378142999,1754746241501,-5000.0,0.00024336,2]
[378143000,1754746241511,-604.4946,0.00024336,2]
[378143001,1754746241520,-190.59141644,0.00024336,2]
[378143006,1754746243573,-888.0,0.00023813,3]
[378143007,1754746243583,-2309.40858356,0.00024336,2]
[378143010,1754746243592,-257.76886109,0.0002434,2]
[378143011,1754746243602,-916.50485159,0.0002434,2]
[378143013,1754746243611,-157.88430855,0.0002434,2]
[378143016,1754746243621,-165.35741382,0.0002434,2]
[378143017,1754746243630,-200.0,0.00024362,2]
[378143020,1754746243640,-150.0,0.00024389,2]
[378143023,1754746243649,-150.0,0.00024419,2]
[378143025,1754746243659,-151.52,0.00024426,2]
[378143027,1754746243668,-215.26416171,0.00024426,2]
[378143029,1754746243678,-789.89606577,0.00024429,2]
[378143031,1754746243691,-605.48556441,0.00024429,2]
[378143034,1754746243705,-4199.31,0.00024429,2]
[378143036,1754746243718,-243.29625291,0.00024429,2]
[378143038,1754746243728,-263.44262098,0.0002443,2]
[378143040,1754746243737,-2124.04785769,0.00024434,2]
[378143043,1754746243753,-316.93700712,0.00024434,2]
[378143045,1754746243762,-400.0,0.00024435,2]
[378143047,1754746243771,-181.30431434,0.00024435,2]
[378143049,1754746243782,-386.14816445,0.00024435,2]
[378143052,1754746243839,-266.80778795,0.00024435,2]
[378143053,1754746243856,-1979.66973326,0.00024435,2]
[378143054,1754746243865,-64894.25079129,0.00024436,2]
[378143055,1754746243875,-2726.46356491,0.00024436,2]
[378143056,1754746243885,-262.564826,0.00024436,7]
[378143057,1754746243895,-153.687415,0.00024436,7]
[378143058,1754746243904,-12018.65405363,0.00024436,2]
[378143059,1754746243916,-2415.0,0.00024436,2]
[378143060,1754746243931,-7643.04624533,0.00024436,2]
[378143061,1754746243977,-5025.47999999,0.00024436,2]
[378143068,1754746246364,-469.3411,0.00024313,3]
[378143069,1754746246434,-418.6589,0.00024313,3]
[378143070,1754746246443,-5541.2687,0.00024336,2]
[378143071,1754746246455,-614.89151972,0.00024336,2]
[378143072,1754746246524,-9519.00000001,0.00024336,2]
[378143073,1754746246535,-5739.11826778,0.00024336,2]
[378143077,1754746247195,153.97,0.00013699,2]
[378143093,1754746446657,-1576.174416,0.00025143,120]
[378143094,1754746446682,-500.0,0.00025143,120]
[378143095,1754746446708,-500.0,0.00025143,120]
[378143096,1754746446736,-400.0,0.00025205,120]
[378143097,1754746446798,-400.0,0.00025479,120]
[378143098,1754746446863,-400.0,0.00025753,120]
[378143099,1754746446916,-160.5,0.00026,120]
[378143102,1754746609838,400.0,0.00024657,120]
[378143103,1754746610076,400.0,0.00024931,120]
[378143104,1754746610324,400.0,0.00025205,120]
[378143105,1754746610576,400.0,0.00025479,120]
[378143106,1754746611450,400.0,0.00025753,120]
[378143115,1754746807986,224.0,0.00026,120]
[378143133,1754746996702,500.0,0.00025331,120]
[378143136,1754747285235,155.53,0.00013699,2]
[378143156,1754747432720,-181.33,0.00018146,2]
[378143157,1754747432731,-160.36231303,0.00018325,2]
[378143158,1754747432742,-250.0,0.00018425,2]
[378143159,1754747432752,-300.0,0.00018425,2]
[378143160,1754747432762,-300.0,0.00018425,2]
[378143161,1754747432771,-151.0,0.00018601,2]
[378143162,1754747432782,-269.32290928,0.00019214,2]
[378143163,1754747432794,-30.67709072,0.00019214,2]
[378143164,1754747432805,-170.25,0.00019622,2]
[378143165,1754747432815,-300.0,0.000198,2]
[378143167,1754747432832,-1200.0,0.00019801,2]
[378143169,1754747432846,-127.32796814,0.00019802,2]
[378143172,1754747432921,-6030.0,0.00019802,2]
[378143173,1754747432932,-1377.81570734,0.00019802,2]
[378143174,1754747432955,-879.5712672,0.00019802,2]
[378143261,1754747438360,-480.90793372,0.00019714,3]
[378143262,1754747438372,-407.09206628,0.00019714,3]
[378143263,1754747438381,-703.50841118,0.00019802,2]
[378143264,1754747438415,-1153.00988079,0.00019802,2]
[378143265,1754747438427,-1053.45061449,0.00019802,2]
[378143266,1754747438438,-2690.73744562,0.00019802,2]
[378143267,1754747438562,-2227.47169996,0.00019802,2]
[378143268,1754747438572,-181.33,0.00019876,2]
[378143269,1754747438582,-250.0,0.00019961,2]
[378143270,1754747438591,-300.0,0.00019961,2]
[378143271,1754747438601,-300.0,0.00019961,2]
[378143272,1754747438612,-5000.0,0.00020271,2]
[378143273,1754747438621,-3029.42,0.00020572,2]
[378143274,1754747438631,-5000.0,0.00020697,2]
[378143275,1754747438640,-200.0,0.00020697,2]
[378143276,1754747438649,-3927.18398471,0.00020915,2]
[378143307,1754747439059,-920.1108005,0.00020915,2]
[378143311,1754747439091,-888.0,0.00020214,3]
[378143313,1754747439100,-152.70521479,0.00020915,2]
[378143315,1754747439109,-182.39141596,0.00020915,2]
[378143317,1754747439122,-39.60858404,0.00020915,2]
[378143320,1754747439131,-600.0,0.00021174,2]
[378143321,1754747439140,-225.56,0.00021174,2]
[378143323,1754747439149,-155.53,0.00021404,2]
[378143325,1754747439158,-225.5,0.000216,2]
[378143327,1754747439167,-181.33,0.00021607,2]
[378143329,1754747439176,-506.0,0.0002165,2]
[378143331,1754747439186,-107.83461189,0.00021669,2]
[378143460,1754747440417,-1572.16538811,0.00021669,2]
[378143462,1754747440426,-250.0,0.0002178,2]
[378143464,1754747440435,-793.74695188,0.00021814,2]
[378143466,1754747440444,-674.08768001,0.00021954,3]
[378143471,1754747440478,-1101.91231999,0.00021954,3]
[378143473,1754747440487,-1978.73,0.00022018,2]
[378143475,1754747440497,-289.94,0.00022087,2]
[378143477,1754747440506,-188.76,0.00022089,2]
[378143479,1754747440516,-5419.44,0.0002212,2]
[378143481,1754747440525,-189.20389856,0.00022167,2]
[378143483,1754747440536,-150.0,0.00022167,2]
[378143485,1754747440545,-150.0,0.00022167,2]
[378143487,1754747440555,-150.0,0.00022167,2]
[378143489,1754747440564,-150.0,0.00022167,2]
[378143491,1754747440574,-150.0,0.00022167,2]
[378143493,1754747440583,-150.0,0.00022167,2]
[378143495,1754747440592,-150.0,0.00022167,2]
[378143497,1754747440601,-1000.0,0.00022245,2]
[378143499,1754747440614,-173.47,0.00022304,2]
[378143500,1754747440623,-17799.30878146,0.00022323,2]
[378143501,1754747440652,-2085.0,0.00022323,2]
[378143502,1754747440663,-994.58000011,0.00022323,2]
[378143504,1754747440773,-439.19940359,0.00022323,2]
[378143509,1754747440809,-888.0,0.00022169,3]
[378143511,1754747440819,-501.7823277,0.00022323,2]
[378143781,1754747443393,-2080.12948714,0.00022323,2]
[378143785,1754747443403,-222.20082784,0.00022403,2]
[378143793,1754747443453,-992.77176644,0.00022403,2]
[378143795,1754747443463,-170.0,0.00022453,7]
[378143797,1754747443472,-358.92641066,0.00022454,3]
[378143802,1754747443515,-595.77404681,0.00022454,3]
[378143804,1754747443526,-821.29954253,0.00022454,3]
[378143806,1754747443539,-171.0,0.00022627,2]
[378143808,1754747443549,-500.0,0.00022658,2]
[378143810,1754747443560,-377.61151268,0.0002278,2]
[378143812,1754747443571,-171.0,0.00023011,2]
[378143814,1754747443580,-632.61256719,0.00023058,2]
[378143816,1754747443589,-152.0,0.00023116,3]
[378143818,1754747443599,-150.0,0.00023136,2]
[378143820,1754747443608,-167.53,0.00023142,2]
[378143821,1754747443619,-167.53,0.00023155,2]
[378143824,1754747443628,-167.53,0.00023167,2]
[378143826,1754747443638,-167.53,0.00023179,2]
[378143827,1754747443647,-167.53,0.00023191,2]
[378143829,1754747443656,-167.53,0.00023203,2]
[378143831,1754747443666,-167.53,0.00023215,2]
[378143833,1754747443675,-167.53,0.00023228,2]
[378143835,1754747443684,-167.53,0.0002324,2]
[378143837,1754747443694,-167.53,0.00023252,2]
[378143839,1754747443703,-167.53,0.00023264,2]
[378143841,1754747443712,-167.53,0.00023276,2]
[378143843,1754747443722,-167.53,0.00023289,2]
[378143845,1754747443731,-167.53,0.00023301,2]
[378143847,1754747443740,-167.53,0.00023313,2]
[378143849,1754747443750,-167.53,0.00023325,2]
[378143851,1754747443760,-181.33,0.00023337,2]
[378143853,1754747443769,-167.53,0.00023337,2]
[378143855,1754747443778,-167.53,0.0002335,2]
[378143857,1754747443787,-167.53,0.00023362,2]
[378143859,1754747443796,-167.53,0.00023374,2]
[378143861,1754747443807,-171.0,0.00023395,2]
[378143863,1754747443816,-243.2,0.0002358,2]
[378143865,1754747443825,-150.0,0.00023635,2]
[378143867,1754747443835,-649.859,0.0002364,2]
[378143869,1754747443844,-472.55924042,0.00023702,2]
[378143871,1754747443854,-674.0,0.00023713,2]
[378143873,1754747443863,-171.0,0.00023779,2]
[378143875,1754747443873,-160.0,0.00023814,2]
[378143877,1754747443882,-300.0,0.00023814,2]
[378143879,1754747443892,-300.0,0.00023814,2]
[378143881,1754747443902,-300.0,0.00023814,2]
[378143883,1754747443911,-500.0,0.00023814,2]
[378143885,1754747443921,-300.0,0.00023814,2]
[378143887,1754747443930,-300.0,0.00023814,2]
[378143889,1754747443940,-300.0,0.00023814,2]
[378143891,1754747443949,-300.0,0.00023814,2]
[378143893,1754747443958,-300.0,0.00023814,2]
[378143894,1754747443967,-300.0,0.00023814,2]
[378143895,1754747443977,-300.0,0.00023814,2]
[378143896,1754747443986,-300.0,0.00023814,2]
[378143897,1754747443995,-300.0,0.00023814,2]
[378143898,1754747444004,-300.0,0.00023814,2]
[378143899,1754747444013,-300.0,0.00023814,2]
[378143900,1754747444022,-300.0,0.00023814,2]
[378143901,1754747444031,-300.0,0.00023814,2]
[378143902,1754747444041,-300.0,0.00023814,2]
[378143903,1754747444052,-300.0,0.00023814,2]
[378143904,1754747444061,-151.0,0.00023814,2]
[378143905,1754747444077,-300.0,0.00023814,2]
[378143906,1754747444097,-300.0,0.00023814,2]
[378143908,1754747444118,-151.0,0.00023814,2]
[378143910,1754747444129,-300.0,0.00023814,2]
[378143912,1754747444138,-151.0,0.00023814,2]
[378143914,1754747444148,-300.0,0.00023814,2]
[378143916,1754747444157,-151.0,0.00023814,2]
[378143918,1754747444167,-239.84119403,0.00023814,2]
[378143920,1754747444176,-300.0,0.00023814,2]
[378143922,1754747444186,-35.90661689,0.00023814,2]
[378144182,1754747446777,-516.0,0.0002165,2]
[378144184,1754747446786,-500.0,0.00022017,2]
[378144186,1754747446795,-337.92131155,0.00022017,2]